Cogmind - Beta 15 @@@ ROGUE MODE // 2025.08.20 @ 21:32:51 Player: Mercey Result: Destroyed by as-04655 with Assembled Heavy Rifle Performance ------------- Evolutions (0) 0 Regions Visited (2) 400 Robots Destroyed (17) 85 Value Destroyed (310) 310 Prototype IDs (0) 0 Alien Tech Used (0) 0 Bonus (0) 0 TOTAL SCORE: 795 Bonus ------- None Cogmind --------- Core Integrity 0/250 Matter 235/300 Energy 99/100 System Corruption 0% Temperature Cool (0) Movement Core (50) Location -10/Mines Parts ------- > --- POWER (1) -------- (None) > --- PROPULSION (2) --- (None) > --- UTILITY (2) ------ (None) > --- WEAPON (2) ------- (None) > --- INVENTORY (5) ---- Light Ion Engine Aluminum Leg Small Storage Unit Datajack Mining Laser Peak State ------------ > --- POWER ------------ Light Ion Engine > --- PROPULSION ------- Aluminum Leg Aluminum Leg > --- UTILITY ---------- Small Storage Unit Large Storage Unit > --- WEAPON ----------- Assault Rifle Light Assault Rifle > --- INVENTORY -------- Light Ion Engine Light Assault Rifle [Rating: 7] Favorites ----------- Power Light Ion Engine Engine Light Ion Engine Propulsion Aluminum Leg Leg Aluminum Leg Utility Large Storage Unit Storage Large Storage Unit Processor Transport Network Coupler Weapon Light Assault Rifle Ballistic Gun Light Assault Rifle Launcher Grenade Launcher Build | -11 -10 -10 ------- Run | Yrd Mat Min Slots Evolved . | . . . Power . | . . . Propulsion . | . . . Utility . | . . . Weapon . | . . . Parts Attached 13 | 6 5 2 Power 3 | 1 1 1 Engine 3 | 1 1 1 Core . | . . . Reactor . | . . . Propulsion 3 | 2 1 . Treads . | . . . Leg 3 | 2 1 . Wheel . | . . . Hover . | . . . Flight . | . . . Utility 3 | 1 2 . Device . | . . . Storage 2 | 1 1 . Processor 1 | . 1 . Hackware . | . . . Protection . | . . . Artifact . | . . . Weapon 4 | 2 1 1 Energy Gun . | . . . Energy Cannon . | . . . Ballistic Gun 3 | 2 1 . Ballistic Cannon . | . . . Launcher 1 | . . 1 Special Weapon . | . . . Impact Weapon . | . . . Slashing Weapon . | . . . Piercing Weapon . | . . . Special Melee Weapon . | . . . Unidentified Prototypes . | . . . Parts Lost 6 | . 3 3 Power 2 | . 1 1 Propulsion 1 | . 1 . Utility . | . . . Weapon 3 | . 1 2 Highest Loss Streak 3 | . 3 2 To Critical Strikes . | . . . Average Backups 5 | 1 5 5 Power 1 | . 1 . Propulsion . | . . 1 Utility 1 | . 1 1 Weapon 1 | . 1 1 Tool/Special . | . . . Unused Backups 4 | . 1 3 Power 1 | . . 1 Propulsion 1 | . . 1 Utility . | . . . Weapon 1 | . 1 . Tool/Special 1 | . . 1 Average Slot Usage (%) 80 | . 87 26 Engine 12 | . 14 3 Leg 25 | . 27 6 Storage 12 | . 14 3 Processor 2 | . 2 3 Ballistic Gun 25 | . 28 4 Peak Build Rating 7 | 6 7 7 Average Rating 5 | 4 6 1 On Entrance 4 | . 6 7 Naked Turns 30 | . . 30 Heaviest Build 27 | 11 27 3 Greatest Support 20 | 20 20 3 Greatest Overweight (x) 2 | . 2 . Average Overweight (x) . | . . . Largest Inventory Capacity 15 | 8 15 15 Average Capacity 13 | 6 14 6 Most Carried 8 | 2 8 6 Average Carried 5 | 1 5 5 Final Capacity 15 | 8 15 5 Final Carried 6 | 2 6 5 Class Distribution -------------------- 100% | Mutant Dominant Class ---------------- Mutant | -10/Materials Mutant | -10/Mines Resources | -11 -10 -10 ----------- Run | Yrd Mat Min Matter Collected 481 | 100 351 30 Remotely . | . . . Salvage Created 468 | . 390 78 Parts 37 | . 27 10 Haulers Intercepted 1 | . 1 . Recyclers Shooed 1 | . 1 . Parts Field Recycled . | . . . Retrieved Matter . | . . . Parts Self-Destructed . | . . . Prevented . | . . . Kills | -11 -10 -10 ------- Run | Yrd Mat Min Combat Hostiles Destroyed 18 | . 9 9 Guns 10 | . 9 1 AOE 8 | . . 8 Classes Destroyed 7 | . 5 2 Tunneler 1 | . . 1 Hauler 1 | . 1 . Operator 1 | . 1 . Watcher 2 | . 2 . Swarmer 7 | . 5 2 Grunt 5 | . 4 1 Assembled 6 | . . 6 Best Kill Streak 9 | . 3 9 Combat Bots Only 8 | . 3 8 Max Kills in Single Turn 3 | . 1 3 Gunslinging . | . . . Exploded 3 | . . 3 Melee . | . . . Uniques/NPCs Destroyed . | . . . Combat | -11 -10 -10 -------- Run | Yrd Mat Min Hostile Shots Fired 95 | . 75 20 Missed 21 | . 20 1 Hits 74 | . 55 19 Projectile 74 | . 55 19 AOE 1 | . . 1 Critical Strikes 1 | . 1 . Damage Taken 906 | . 619 287 Core 250 | . 126 124 Absorbed by Shields . | . . . Core Remaining (%) 100 | 100 . . Volleys Fired 61 | . 48 13 Largest 2 | . 2 2 Hottest 40 | . 40 40 Shots Fired 112 | . 96 16 Gun 104 | . 96 8 Cannon . | . . . Launcher 8 | . . 8 Special . | . . . Kinetic 104 | . 96 8 Thermal . | . . . Explosive 8 | . . 8 Electromagnetic . | . . . Robot Hit Streak 12 | . 12 6 Robot Miss Streak 6 | . 6 3 Penetration Max . | . . . Secondary Targets 3 | . 3 . Max Gunslinging Chain 1 | . 1 . Shots Hit Robots 67 | . 60 7 Core Hits 43 | . 24 19 Critical Kills . | . . . Critical Parts Destroyed 1 | . 1 . Critical Strikes 1 | . 1 . Destroy 1 | . 1 . Melee Attacks . | . . . Impact . | . . . Slashing . | . . . Piercing . | . . . Sneak Attacks . | . . . Combat Hostiles . | . . . Follow-up Attacks . | . . . Damage Inflicted 1136 | . 617 519 Guns 634 | . 586 48 Cannons . | . . . Explosions 471 | . . 471 Melee . | . . . Ramming 31 | . 31 . Kinetic 634 | . 586 48 Thermal . | . . . Explosive 471 | . . 471 Electromagnetic . | . . . Impact . | . . . Slashing . | . . . Piercing . | . . . Highest Corruption . | . . . Average Corruption . | . . . Corruption Purged . | . . . Corruption Blocked . | . . . Overload Shots . | . . . Overflow Damage . | . . . Projectiles . | . . . Explosions . | . . . Melee . | . . . Knockbacks 1 | . 1 . Impact 1 | . 1 . Kinetic . | . . . Secondary . | . . . Self-Inflicted Damage . | . . . Shots . | . . . Rammed . | . . . Targets Rammed 6 | . 6 . Kicked 6 | . 6 . Crushed . | . . . Highest Temperature 19 | . 18 19 Average Temperature 8 | . 8 11 Received Heat Transfer 418 | . 285 133 Siege Activations . | . . . Martial Activations . | . . . Shielding Activations . | . . . Robots Disrupted . | . . . Combat Hostiles . | . . . Robots Corrupted . | . . . Combat Hostiles . | . . . Parts Fried . | . . . Impact Corruptions . | . . . Robots Melted . | . . . Combat Hostiles . | . . . Parts Melted . | . . . Heat Transferred . | . . . Parts Sabotaged . | . . . Parts Stolen . | . . . Parts Stripped . | . . . Power Chain Reactions . | . . . Alert | -11 -10 -10 ------- Run | Yrd Mat Min Maximum Alert Level . | . . . Low Security (%) 100 | 100 100 100 Level 1 . | . . . Level 2 . | . . . Level 3 . | . . . Level 4 . | . . . Level 5 . | . . . High Security . | . . . Max Security . | . . . Peak Influence 138 | . 105 138 Initial 30 | . . 30 Average 41 | . 41 72 Influence Increases 467 | . 309 158 Destroy 0b10 Robot/C 240 | . 180 60 Destroy 0b10 Robot/NC 25 | . 20 5 Destroy Leader 66 | . 56 10 Successful Hack 8 | . 8 . Destroy Structure 38 | . . 38 Lose Combat Pursuer 90 | . 45 45 Influence Decreases 339 | . 231 108 Entered New Map 48 | . . 48 Time Decay 231 | . 201 30 Lost Part 60 | . 30 30 Squads Dispatched 2 | . 2 . Investigation 2 | . 2 . Extermination . | . . . Reinforcement . | . . . Assault . | . . . Garrison . | . . . Intercept . | . . . Searches Triggered . | . . . Construction Impeded . | . . . Haulers Reinforced . | . . . Active Scanning Responses . | . . . Cargo Convoy Interrupts . | . . . Stealth | -11 -10 -10 --------- Run | Yrd Mat Min Distress Signals 2 | . 2 . Communications Jammed . | . . . Distress Signals . | . . . Times Spotted 40 | . 21 19 Peak Tracking Total 10 | . 7 10 Tactical Retreats 2 | . 1 1 Traps | -11 -10 -10 ------- Run | Yrd Mat Min Traps Triggered 1 | . 1 . Indirectly . | . . . Trap Hack Attempts . | . . . Triggered . | . . . Disarmed . | . . . Reprogrammed . | . . . Reused . | . . . Traps Extracted . | . . . Installed . | . . . Triggered . | . . . Machines | -11 -10 -10 ---------- Run | Yrd Mat Min Machines Disabled . | . . . Max in Single Turn . | . . . Machines Repaired . | . . . Machines Dismantled . | . . . Machines Sabotaged . | . . . Overloaded Fab Kills . | . . . Hacking | -11 -10 -10 --------- Run | Yrd Mat Min Machines Accessed 1 | . 1 . Terminals 1 | . 1 . Fabricators . | . . . Repair Stations . | . . . Recycling Units . | . . . Scanalyzers . | . . . Garrison Access . | . . . Total Hacks 2 | . 2 . Successful 1 | . 1 . Failed 1 | . 1 . Catastrophic 1 | . 1 . Database Lockouts . | . . . Manual 2 | . 2 . Terminals 2 | . 2 . Fabricators . | . . . Repair Stations . | . . . Recycling Units . | . . . Scanalyzers . | . . . Garrison Access . | . . . Terminal Hacks 1 | . 1 . Branch Access Points 1 | . 1 . Fabricator Hacks . | . . . Repair Station Hacks . | . . . Recycling Unit Hacks . | . . . Scanalyzer . | . . . Garrison Access Hacks . | . . . Unauthorized Hacks . | . . . Terminals . | . . . Fabricators . | . . . Repair Stations . | . . . Recycling Units . | . . . Scanalyzers . | . . . Garrison Access . | . . . Data Cores Recovered . | . . . Used . | . . . Hacking Detections 1 | . 1 . Full Trace Events 1 | . 1 . Feedback Events . | . . . Feedback Blocked . | . . . Robot Schematics Acquired . | . . . Robots Built . | . . . Authchips . | . . . Time . | . . . Total Robot Build Rating . | . . . Part Schematics Acquired . | . . . Parts Built . | . . . Authchips . | . . . Time . | . . . Total Part Build Rating . | . . . Parts Repaired . | . . . Time . | . . . Parts Recycled . | . . . Recycled Matter . | . . . Retrieved Matter . | . . . Retrieved Components . | . . . Parts Scanalyzed . | . . . Part Schematics Acquired . | . . . Parts Damaged . | . . . Bothacking | -11 -10 -10 ------------ Run | Yrd Mat Min Used RIF Installer . | . . . Robots Hacked . | . . . Non-combat . | . . . Combat . | . . . Robot Hacks Applied . | . . . Relay Couplers Released . | . . . Fabnet Peak Effective % . | . . . Robots Rewired . | . . . Allies Hacked . | . . . Hacks Repelled . | . . . Allies | -11 -10 -10 -------- Run | Yrd Mat Min Total Allies . | . . . Largest Group . | . . . Highest-Rated Group . | . . . Highest-Rated Ally . | . . . Total Orders . | . . . Ally Attacks . | . . . Total Damage . | . . . Kills . | . . . Allies Corrupted . | . . . Allies Melted . | . . . Intel | -11 -10 -10 ------- Run | Yrd Mat Min Active Infowar (turns) 125 | . 112 13 T.N.C. 125 | . 112 13 Robot Analysis Total . | . . . Derelict Logs Recovered . | . . . Drone Launches . | . . . Drone Recoveries . | . . . Exploration | -11 -10 -10 ------------- Run | Yrd Mat Min Turns Passed 850 | 61 710 79 Spaces Moved 445 | 45 303 97 Core 102 | 5 . 97 Treads . | . . . Legs 343 | 40 303 . Wheels . | . . . Hover . | . . . Flight . | . . . Fastest Speed 50 | 50 120 50 Average Speed 144 | 112 179 50 Slowest Speed 260 | 120 260 50 Overloaded Moves . | . . . Propulsion Burnouts . | . . . Robots Hopped . | . . . Potential Cave-ins . | . . . Cave-ins Triggered . | . . . Exploration Rate (%) 22 | 5 44 18 Regions Visited 2 Branch Regions 1 Pre-discovered Areas . | . . . Known Exits Taken 1 | . 1 . Unknown Exits Taken 1 | 1 . . Scrap Searched . | . . . Spaces Dug . | . . . Terrain Destroyed 58 | . . 58 Melee . | . . . Projectile . | . . . AOE 58 | . . 58 Terrain Rammed . | . . . Walls Destroyed . | . . . Machines Disabled . | . . . Actions | -11 -10 -10 --------- Run | Yrd Mat Min Total 547 | 52 382 113 Wait 10 | . 10 . Move 443 | 44 302 97 Hop . | . . . Pick Up 10 | 2 7 1 Fast Attach 8 | 6 2 . Attach 6 | . 4 2 Detach 2 | . 2 . Swap . | . . . Drop 1 | . 1 . Fire 61 | . 48 13 Melee . | . . . Ram . | . . . Kick 6 | . 6 . Crush . | . . . Escape Stasis . | . . . Rewire . | . . . Trap . | . . . Miscellaneous . | . . . Route ------- -11/Scrapyard -10/Materials (discovered 2 exits: *Min x2) -10/Mines History --------- Turn | Location | Event 7 | -11/Scrapyard | Discovered new exit (range 15) 62 | -11/Scrapyard | Entered Materials 95 | -10/Materials | Identified exit to Mines 305 | -10/Materials | Build established: Mutant 681 | -10/Materials | Core integrity fell below 50% 715 | -10/Materials | Lost 3 parts (1p1n1w) 772 | -10/Materials | Entered Mines 773 | -10/Mines | Assembled infested the area 785 | -10/Mines | Released all parts (6) 851 | -10/Mines | Core integrity fell below 20% 851 | -10/Mines | Destroyed by as-04655 with Assembled Heavy Rifle Last Messages --------------- Released Transport Network Coupler. Released Lgt. Assault Rifle. Released Lgt. Ion Engine. T-07 Excavator is excavating. S-10 Pest destroyed. Destroyed Wheel. S-10 Pest destroyed. Acquired 5 matter. Acquired Lgt. Ion Engine. Acquired 16 matter. Acquired 9 matter. as-54778 destroyed. as-01616 destroyed. as-21817 destroyed. as-65139 destroyed. as-18919 destroyed. as-83621 destroyed. The unstable cave ceiling collapses. Grenade Launcher destroyed. [Achievement: Back For More] Map ----- +----------------------------------------------------+ | ??????????????????????????????????????? | | ??????????????????????????????????????? | | ??????????????????????????????????????? | | ??????????????????????????????????????? | | ??????????????????????????????????????? | | ??????????????????????????????????????? | | ??????????????????????????????????????? | | ??????????????????????????????????????? | | ??????????????????????????????????????? | | ???????????????????#####??????????????? | | ???????????????????# ??????????????? | | ??????????????????## ##????????????? | | ?????????????????## # # #????????????? | | ??????# ##### ##???????????? | | ??????# %= [ [ #???????????? | | ??????# % ###### ##??????????? | | ??????????????????# [ ##?????????? | | ????????????????????# ###???????? | | ????????????????????# a ##??????? | | ????????????????????# ##?????? | | ????????????????????## ###???? | | ?????????????????????### ## ##??? | | ???????????????????????# ###### #??? | | ???????????????????????# #### # ## #??? | | ??????????????????????## ####??? | | ??????????????????????# @ a #?????? | | ??????????????????????# a #?????? | | ??????????????????????# #?????? | | ??????????????????????# ######?????? | | ??????????????????### g ##????????? | | ??????????????????# d ##???????? | | ??????????????????# d #???????? | | ??????????????????# ##???????? | | #####?????????????# #########????????? | | # ##????????????# #????????????????? | | * #????????????# #????????????????? | | %[= #????????????# #????????????????? | | =*=[ ##???????????# #????????????????? | | ! #???????????# #### #???????????? | | # ############# #???????????? | | ## ##???????????? | | ?### #####????????????? | | ???###################????????????????? | | ??????????????????????????????????????? | | ??????????????????????????????????????? | | ??????????????????????????????????????? | | ??????????????????????????????????????? | | | | | | | +----------------------------------------------------+ Best States ------------- Heat Dissipation 25 Energy Generation 10 Energy Capacity 250 Matter Stores 298 Matter Capacity 300 Sight Range 16 Terrain Scan Density 10 Evasion (%) 55 Item Schematics ----------------- None Robot Schematics ------------------ None Fabricated ------------ Nothing Repaired ---------- Nothing Alien Tech Used ----------------- None Achievements -------------- Back For More Challenges ------------ None Game ------ Seed FrostPortableClaws Manual? 0 Play Time 00:09:10 Cumulative 31.7 hours Start 2025.08.20 @ 21:25:26 End 2025.08.20 @ 21:32:51 Sessions 1 Manual Loads 0 Difficulty Rogue Special Mode None Game No. 50 Rogue 50 Adventurer 0 Explorer 0 Win Type - Total 0 Types 0/0/0/0/0/0/0/0/0/0 Lore% 11 Gallery% 27 Achievement% 23 Wizard Run 0 Options --------- Layout 1 ASCII 0 Keyboard 1 Movement Arrows Keybinds 0 Fullscreen 1 Font 40/X11 Map View 51x44 Zoom Use 0% Tactical HUD 0 Map Filters NONE Filters NONE Steam 1 RUN: ac5d81c2-eda3-474f-b02d-6b7ac4ae5f34